bitfinex-derivatives/quotes_ETHF0:USTF0_20250331
["timestamp","ask_amount","ask_price","bid_price","bid_amount"]
[1743411733487,4.93789,1797.3,1797.2,1.11293]
[1743411733488,3.825,1797.3,1797.2,1.11293]
[1743411733687,4.93786,1797.3,1797.2,1.11293]
[1743411733993,1.11293,1797.2,1797.1,1.84706]
[1743411734294,2.49513,1797.2,1797.1,1.84706]
[1743411734489,1.11299,1797.1,1797.0,2.56545]
[1743411734695,2.49519,1797.1,1797.0,2.56545]
[1743411734998,2.49519,1797.1,1797.0,1.4524]
[1743411735184,3.2078,1797.2,1797.1,1.11299]
[1743411735388,9.59048,1797.3,1797.2,1.11293]
[1743411735686,0.00834841,1797.4,1797.3,1.11286]
[1743411736694,1.12114841,1797.4,1797.3,1.11286]
[1743411736890,1.45314841,1797.4,1797.3,1.11286]
[1743411737196,0.00834841,1797.4,1797.3,4.32066]
[1743411737397,3.2078,1797.7,1797.6,1.11268]
[1743411737597,4.32042,1797.7,1797.6,1.11268]
[1743411737896,3.2078,1797.7,1797.6,1.11268]
[1743411738090,4.32042,1797.7,1797.6,1.11268]
[1743411738291,3.2078,1797.7,1797.6,1.11268]
[1743411738487,3.2078,1797.7,1797.6,2.62228]
[1743411739086,1.11268,1797.6,1797.5,0.00834841]
[1743411739292,7.94138,1797.6,1797.5,0.00834841]
[1743411741401,7.94138,1797.6,1797.5,1.12108841]
[1743411741598,4.09438,1797.6,1797.5,1.12108841]
[1743411741999,2.9817,1797.6,1797.5,1.12108841]
[1743411742301,1.513,1797.6,1797.5,1.12108841]
[1743411742492,2.62568,1797.6,1797.5,1.12108841]
[1743411742695,2.62568,1797.6,1797.5,0.00834841]
[1743411743095,3.2078,1797.7,1797.6,1.11268]
[1743411743696,4.32042,1797.7,1797.6,1.11268]
[1743411743895,5.71372,1797.7,1797.6,1.11268]
[1743411744206,4.6011,1797.7,1797.6,1.11268]
[1743411746207,1.3933,1797.7,1797.6,1.11268]
[1743411747103,0.00834841,1797.8,1797.7,1.11262]
[1743411748305,2.55729841,1797.8,1797.7,1.11262]
[1743411750503,1.44474841,1797.8,1797.7,1.11262]
[1743411750910,2.55729841,1797.8,1797.7,1.11262]
[1743411751312,1.44474841,1797.8,1797.7,1.11262]
[1743411752114,2.55729841,1797.8,1797.7,1.11262]
[1743411752514,1.44474841,1797.8,1797.7,1.11262]
[1743411753117,2.55729841,1797.8,1797.7,1.11262]
[1743411753615,1.44474841,1797.8,1797.7,1.11262]
[1743411755811,1.44474841,1797.8,1797.5,7.75969841]
[1743411755812,1.11268,1797.6,1797.5,1.12100841]
[1743411756516,2.59248,1797.6,1797.5,1.12100841]
[1743411756914,1.4798,1797.6,1797.5,1.12100841]
[1743411757112,1.4798,1797.6,1797.5,2.57610841]
[1743411757717,3.826,1797.7,1797.6,1.11268]
[1743411758015,4.93862,1797.7,1797.6,1.11268]
[1743411759819,4.93862,1797.7,1797.5,2.53483841]
[1743411759820,1.11268,1797.6,1797.5,2.53483841]
[1743411760115,1.3694,1797.6,1797.5,2.53483841]
[1743411760521,2.48208,1797.6,1797.5,2.53483841]
[1743411761420,2.48208,1797.6,1797.5,1.12103841]
[1743411761817,2.48208,1797.6,1797.5,2.53483841]
[1743411762210,2.78985841,1797.8,1797.7,1.11262]
[1743411762211,0.00834841,1797.8,1797.7,1.11262]
[1743411762413,2.63058,1797.6,1797.5,2.53488841]
[1743411762612,1.5179,1797.6,1797.5,2.53488841]
[1743411763318,2.63058,1797.6,1797.5,2.53488841]
[1743411763817,1.5179,1797.6,1797.5,2.53488841]
[1743411764120,2.63056,1797.7,1797.6,1.11268]
[1743411764618,1.11268,1797.6,1797.5,0.00834841]
[1743411764808,7.19828,1797.6,1797.5,1.12108841]
[1743411765016,7.19828,1797.6,1797.4,2.20035477]
[1743411765017,1.11274,1797.5,1797.4,2.20035477]
[1743411765219,5.80414,1797.5,1797.4,2.20035477]
[1743411768022,1.1128,1797.4,1797.3,1.12119841]
[1743411768225,2.4989,1797.4,1797.3,1.12119841]
[1743411768615,2.4989,1797.4,1797.3,1.12120841]
[1743411771018,3.2078,1797.5,1797.4,1.1128]
[1743411771226,3.2078,1797.5,1797.4,2.4806]
[1743411773221,1.1128,1797.4,1797.3,0.00834841]
[1743411773421,3.2362,1797.4,1797.3,0.00834841]
[1743411774826,1.11311,1796.9,1796.8,1.11314]
[1743411775126,4.32091,1796.9,1796.8,1.11314]
[1743411775525,5.80501,1796.9,1796.8,1.11314]
[1743411775733,1.11317,1796.8,1796.7,2.56579]
[1743411775925,2.59727,1796.8,1796.7,2.56579]
[1743411776229,1.4841,1796.8,1796.7,2.56579]
[1743411777326,2.59727,1796.8,1796.7,2.56579]
[1743411777527,1.11324,1796.7,1796.6,0.00834841]
[1743411777726,2.60304,1796.7,1796.6,0.00834841]
[1743411777928,2.60304,1796.7,1796.6,1.41544841]
[1743411778136,6.40504,1796.7,1796.6,1.41544841]
[1743411778330,9.61284,1796.7,1796.6,0.00834841]
[1743411780627,3.81234841,1796.8,1796.7,1.11324]
[1743411780829,4.92551841,1796.8,1796.7,2.56914]
[1743411781027,1.11324,1796.7,1796.6,2.49549841]
[1743411781224,2.57674,1796.7,1796.6,2.49549841]
[1743411781527,1.4635,1796.7,1796.6,2.49549841]
[1743411781925,2.57674,1796.7,1796.6,2.49549841]
[1743411782330,1.4635,1796.7,1796.6,1.12159841]
[1743411782632,7.02014841,1796.8,1796.7,1.11324]
[1743411782833,8.48364841,1796.8,1796.7,2.48714]
[1743411783025,9.59681841,1796.8,1796.7,2.48714]
[1743411783226,8.48364841,1796.8,1796.7,2.48714]
[1743411783531,9.59681841,1796.8,1796.7,2.48714]
[1743411784026,1.11324,1796.7,1796.6,1.12164841]
[1743411784232,2.58624,1796.7,1796.6,2.63744841]
[1743411784422,2.58624,1796.7,1796.6,1.52414841]
[1743411784622,2.58624,1796.7,1796.6,0.00834841]
[1743411785023,5.08624,1796.7,1796.6,0.00834841]
[1743411785227,1.1133,1796.6,1796.5,2.2265]
[1743411785424,7.2366,1796.6,1796.5,2.2265]
[1743411786426,1.11336,1796.5,1796.4,0.00834841]
[1743411786628,6.40626,1796.5,1796.4,0.00834841]
[1743411788336,12.37626,1796.5,1796.4,0.00834841]
[1743411789134,5.56751,1796.3,1795.4,3.2078]
[1743411789332,3.2078,1795.9,1795.6,1.4858]
[1743411789535,3.818,1795.9,1795.8,1.11379]
[1743411789935,3.818,1795.9,1795.8,2.48099]
[1743411790231,4.93173,1795.9,1795.8,2.48099]
[1743411790432,1.11379,1795.8,1795.7,0.00834841]
[1743411790628,2.50609,1795.8,1795.7,0.00834841]
[1743411790829,3.20009,1795.8,1795.7,0.00834841]
[1743411791632,3.20009,1795.8,1795.7,1.37554841]
[1743411792929,3.20009,1795.8,1795.7,0.00834841]
[1743411794643,3.65250259,1795.8,1795.7,0.00834841]
[1743411795738,9.62250259,1795.8,1795.7,0.00834841]
[1743411795941,1.11392,1795.6,1795.5,0.1096]
[1743411796237,8.14972,1795.6,1795.5,0.1096]
[1743411796433,8.14972,1795.6,1794.9,3.26273]
[1743411796434,1.11429,1795.0,1794.9,1.4581]
[1743411796633,1.11449,1794.7,1794.6,1.11449]
[1743411796834,1.11449,1794.7,1794.6,1.87339]
[1743411797132,1.1146,1794.5,1794.4,1.81385]
[1743411797337,1.1146,1794.5,1794.4,0.6992]
[1743411797537,5.8306,1794.6,1794.5,1.1146]
[1743411797738,1.1146,1794.5,1794.4,1.81383]
[1743411797933,1.1146,1794.5,1794.4,3.5487]
[1743411798138,2.6228,1794.5,1794.4,3.5487]
[1743411800142,3.835,1794.6,1794.4,3.5487]
[1743411800348,7.0428,1794.6,1794.4,3.5487]
[1743411800541,3.835,1794.6,1794.5,1.1146]
[1743411800843,8.15734,1794.6,1794.5,0.6857]
[1743411801039,1.1146,1794.5,1794.4,3.5487]
[1743411801242,8.15737,1794.6,1794.4,3.5487]
[1743411801437,7.0428,1794.6,1794.3,2.502]
[1743411801648,1.11466,1794.4,1794.3,2.502]
[1743411802143,4.32246,1794.4,1794.3,0.6857]
[1743411802642,7.0428,1794.6,1794.3,1.80042]
[1743411802836,1.11466,1794.4,1794.3,1.80042]
[1743411803036,1.11466,1794.4,1794.3,4.02962]
[1743411803231,4.32246,1794.4,1794.3,4.02962]
[1743411803442,4.32246,1794.4,1794.3,2.9149]
[1743411803645,4.32246,1794.4,1794.3,3.34392]
[1743411803944,3.2078,1794.4,1794.3,3.34392]
[1743411804130,8.5478,1794.6,1794.4,1.11466]
[1743411804335,8.5478,1794.6,1794.3,2.2292]
[1743411804638,0.00834841,1794.8,1794.7,1.11448]
[1743411804639,3.21614841,1794.8,1794.7,1.11448]
[1743411804844,7.06414841,1794.8,1794.7,1.11448]
[1743411805044,3.21614841,1794.8,1794.7,1.11448]
[1743411805346,3.2078,1795.1,1795.0,1.11429]
[1743411805647,3.855,1795.7,1794.9,7.0628]
[1743411805941,3.855,1795.7,1795.6,1.11392]
[1743411806145,3.86,1795.8,1795.7,1.11386]
[1743411806349,4.97382,1795.8,1795.6,1.11388]
[1743411806552,7.0678,1795.8,1795.6,0.00834841]
[1743411806736,1.11386,1795.7,1795.6,0.00834841]
[1743411806942,1.11415,1795.3,1795.1,0.7261]
[1743411807250,1.11417,1795.2,1795.1,1.8403]
[1743411807547,1.11417,1795.2,1795.0,0.7585]
[1743411807548,3.2078,1795.2,1794.8,3.2078]
[1743411807850,2.51365,1795.1,1794.9,1.11434]
[1743411808046,3.869,1795.0,1794.9,1.11434]
[1743411808250,4.98331,1795.0,1794.8,4.32217]
[1743411808639,4.98331,1795.0,1794.9,1.11435]
[1743411808835,1.11435,1794.9,1794.8,4.32216]
[1743411809054,4.98334,1795.0,1794.8,3.2078]
[1743411809446,4.98334,1795.0,1794.9,1.11435]
[1743411809647,3.869,1795.0,1794.9,1.11435]
[1743411810453,4.97819,1795.2,1794.8,5.99377]
[1743411810653,7.0718,1795.2,1794.7,4.32224]
[1743411810953,1.11437,1794.9,1794.8,1.11441]
[1743411811450,3.2078,1795.0,1794.6,2.78627]
[1743411811754,4.32211,1795.0,1794.8,1.11436]
[1743411811945,4.33045841,1795.0,1794.8,1.11436]
[1743411812144,4.33045841,1795.0,1794.9,1.5095]
[1743411812453,4.33045841,1795.0,1794.9,2.62385]
[1743411812750,4.33045841,1795.0,1794.9,1.5095]
[1743411813051,4.33045841,1795.0,1794.9,2.62385]
[1743411813355,3.21614841,1795.0,1794.9,2.62385]
[1743411813755,4.33043841,1795.0,1794.9,2.62385]
[1743411814649,3.21614841,1795.0,1794.9,2.62385]
[1743411814855,4.33043841,1795.0,1794.9,1.5095]
[1743411815163,4.33043841,1795.0,1794.9,2.62385]
[1743411815364,0.00834841,1795.0,1794.9,5.83165]
[1743411815652,0.00834841,1795.0,1794.9,8.33165]
[1743411815853,60.027,1795.6,1795.5,1.11398]
[1743411816152,3.856,1795.6,1795.5,1.11398]
[1743411816355,7.0658,1795.9,1795.6,2.7848]
[1743411816654,8.17953,1795.9,1795.8,1.11379]
[1743411816860,8.4841,1795.9,1795.8,1.11379]
[1743411817051,3.2078,1795.9,1795.8,1.11379]
[1743411817252,0.00834841,1796.0,1795.9,1.11373]
[1743411817458,0.00834841,1796.0,1795.9,2.52043]
[1743411818961,0.00834841,1796.0,1795.9,1.4067]
[1743411819153,0.00834841,1796.0,1795.7,0.00834841]
[1743411819154,3.21614841,1796.0,1795.7,0.00834841]
[1743411819459,5.2943,1795.9,1795.7,2.52887841]
[1743411819660,1.11379,1795.8,1795.7,2.52887841]
[1743411819963,1.4352,1795.8,1795.7,2.52890841]
[1743411821062,4.98977,1795.9,1795.7,2.52884841]
[1743411821262,3.876,1795.9,1795.8,1.11379]
[1743411821757,0.00834841,1796.0,1795.9,1.11373]
[1743411822153,0.00834841,1796.0,1795.9,2.59503]
[1743411822755,1.44354841,1796.0,1795.9,2.59503]
[1743411822955,5.76501841,1796.0,1795.9,1.4813]
[1743411823963,5.76501841,1796.0,1795.9,2.59503]
[1743411824160,4.65134841,1796.0,1795.9,2.59503]
[1743411824366,0.00834841,1796.0,1795.9,2.59503]
[1743411826166,1.12201841,1796.0,1795.9,2.59503]
[1743411826370,2.59651841,1796.0,1795.9,2.59503]
[1743411826867,1.11373,1795.9,1795.8,1.11376]
[1743411827063,5.3585,1795.9,1795.8,1.11379]
[1743411827264,6.47223,1795.9,1795.8,1.11379]
[1743411827660,1.11379,1795.8,1795.7,4.79785841]
[1743411827954,7.0918,1795.9,1795.8,1.11379]
[1743411828760,1.11379,1795.8,1795.7,2.23584841]
[1743411828968,3.28699,1795.8,1795.7,2.23584841]
[1743411829165,5.78699,1795.8,1795.7,1.09684841]
[1743411829365,1.11417,1795.2,1795.1,1.4892]
[1743411829566,1.11417,1795.2,1795.1,2.1548]
[1743411829763,1.11417,1795.2,1795.1,3.26902]
[1743411829963,4.649,1795.2,1794.8,3.53729]
[1743411830159,1.11424,1795.1,1794.9,1.4169]
[1743411830370,5.00829,1795.0,1794.9,1.4169]
[1743411830573,1.11435,1794.9,1794.8,1.80118]
[1743411830870,1.4412,1794.9,1794.8,1.80118]
[1743411831761,2.55555,1794.9,1794.8,1.80118]
[1743411832469,1.4412,1794.9,1794.8,1.80118]
[1743411832668,0.00834841,1795.0,1794.9,1.11435]
[1743411832868,0.00834841,1795.0,1794.9,2.61215]
[1743411833069,1.3702,1795.3,1795.2,1.11417]
[1743411833665,2.4843,1795.3,1795.2,1.11417]
[1743411833866,2.4843,1795.3,1795.1,2.61198]
[1743411834066,1.11417,1795.2,1795.1,2.61198]
[1743411834363,2.48437,1795.2,1795.1,1.4978]
[1743411834673,1.11423,1795.1,1795.0,0.00834841]
[1743411834973,6.37643,1795.1,1795.0,1.12263841]
[1743411835566,6.37643,1795.1,1795.0,0.00834841]
[1743411837071,5.2622,1795.1,1795.0,1.12263841]
[1743411837271,6.37643,1795.1,1795.0,1.12263841]
[1743411837472,6.37643,1795.1,1795.0,0.00834841]
[1743411837873,6.37643,1795.1,1795.0,1.12263841]
[1743411838273,5.2622,1795.1,1795.0,1.12263841]
[1743411838472,6.37643,1795.1,1795.0,1.12263841]
[1743411839069,3.888,1795.3,1795.2,1.11412]
[1743411839270,3.888,1795.3,1795.1,2.61518]
[1743411839571,5.74867,1795.2,1795.1,1.501]
[1743411839767,1.11423,1795.1,1795.0,1.12258841]
[1743411839972,2.54093,1795.1,1795.0,0.00834841]
[1743411840577,3.27833,1795.1,1795.0,0.00834841]
[1743411840769,5.77833,1795.1,1795.0,0.00834841]
[1743411840972,1.11466,1794.4,1794.3,3.2078]
[1743411841275,1.11472,1794.3,1794.2,2.52375]
[1743411841580,7.91152105,1794.3,1793.8,0.45119043]
[1743411841882,3.2078,1793.9,1793.5,0.7579]
[1743411842082,5.3784,1793.8,1793.7,1.1151]
[1743411842273,4.32279,1793.9,1793.5,0.7579]
[1743411842274,1.11499,1793.9,1793.6,1.409]
[1743411842474,1.11505,1793.8,1793.6,2.52413]
[1743411842774,6.49845,1793.8,1793.6,2.52413]
[1743411842969,1.1151,1793.7,1793.6,1.409]
[1743411843182,4.6892,1793.7,1793.3,0.7011]
[1743411843376,1.11501,1793.9,1793.3,5.3179]
[1743411843574,5.01906,1793.8,1793.6,1.11513]
[1743411843774,5.01906,1793.8,1793.7,2.5241]
[1743411843775,3.905,1793.8,1793.7,2.5241]
[1743411844073,3.53281841,1794.2,1794.0,1.11488]
[1743411844074,7.12714841,1794.2,1794.0,1.11488]
[1743411844268,8.58794841,1794.2,1794.0,1.11487]
[1743411844480,9.70273841,1794.2,1794.1,1.4172]
[1743411844681,8.58794841,1794.2,1794.1,1.4172]
[1743411845072,8.58794841,1794.2,1794.1,2.53205]
[1743411845273,0.00834841,1794.2,1794.1,2.53205]
[1743411845476,5.02568,1794.4,1794.1,1.4172]
[1743411845677,1.4608,1794.3,1794.1,1.4172]
[1743411845875,1.4608,1794.3,1794.2,1.11479]
[1743411846075,3.911,1794.4,1794.3,1.11472]
[1743411846271,3.2078,1794.5,1794.2,3.2078]
[1743411846475,1.11468,1794.4,1794.3,1.11472]
[1743411846678,3.21614841,1794.5,1794.4,1.11466]
[1743411847181,0.00834841,1794.5,1794.4,1.11466]
[1743411847477,9.1778,1794.8,1794.3,3.2078]
[1743411847679,9.1778,1794.8,1794.2,0.00834841]
[1743411847680,1.11472,1794.3,1794.2,1.45464841]
[1743411848177,3.958,1794.4,1794.2,1.45464841]
[1743411848378,3.958,1794.4,1794.3,1.11472]
[1743411848680,1.11472,1794.3,1794.2,1.45464841]
[1743411848984,2.56462,1794.3,1794.2,1.45464841]
[1743411849780,1.4499,1794.3,1794.2,2.56943841]
[1743411849976,3.21614841,1794.5,1794.4,1.11466]
[1743411850171,7.17414841,1794.5,1794.4,1.11466]
[1743411851188,7.17414841,1794.5,1794.3,1.11468]
[1743411851381,8.28879841,1794.5,1794.4,2.49886]
[1743411851882,7.17414841,1794.5,1794.4,2.49886]
[1743411852682,8.28874841,1794.5,1794.4,2.49886]
[1743411853283,8.28874841,1794.5,1794.4,1.3842]
[1743411853479,1.11466,1794.4,1794.3,1.11468]
[1743411853690,8.28878841,1794.5,1794.4,1.11466]
[1743411853890,1.11466,1794.4,1794.3,2.59197]
[1743411854089,7.17414841,1794.5,1794.4,1.11466]
[1743411854286,8.28874841,1794.5,1794.4,2.59196]
[1743411854687,8.28874841,1794.5,1794.4,1.4773]
[1743411854887,1.11466,1794.4,1794.2,0.00834841]
[1743411855088,1.11466,1794.4,1794.3,1.11472]
[1743411855687,7.17414841,1794.5,1794.3,1.11472]
[1743411855881,7.17414841,1794.5,1794.4,1.11466]
[1743411856087,8.28874841,1794.5,1794.4,1.11466]
[1743411856293,1.11466,1794.4,1794.3,1.11467]
[1743411856986,8.28879841,1794.5,1794.4,1.11466]
[1743411857187,3.21614841,1794.5,1794.4,1.11466]
[1743411857392,0.00834841,1794.5,1794.4,4.32246]
[1743411857892,3.2078,1794.8,1794.7,1.11448]
[1743411858088,8.75514,1795.4,1795.1,1.11419]
[1743411858089,5.06821,1795.2,1795.1,1.11419]
[1743411858290,1.11426,1795.1,1795.0,1.11426]
[1743411858492,2.78558,1795.1,1794.8,4.5928]
[1743411858693,1.11454,1794.6,1794.5,5.08118]
[1743411858903,1.11454,1794.6,1794.5,4.32238]
[1743411859796,1.11454,1794.6,1794.5,3.2078]
[1743411859991,1.11466,1794.4,1794.3,2.49969]
[1743411860200,5.08066,1794.4,1794.3,1.385]
[1743411860413,5.08071,1794.4,1794.2,4.33093841]
[1743411860801,5.08071,1794.4,1794.3,1.11472]
[1743411861797,3.966,1794.4,1794.3,1.11472]
[1743411862199,3.966,1794.4,1794.3,2.53112]
[1743411862402,5.08066,1794.4,1794.3,2.53112]
[1743411862810,3.966,1794.4,1794.3,2.53112]
[1743411863198,3.2078,1794.6,1794.5,1.1146]
[1743411863506,1.11457,1794.6,1794.5,1.11456]
[1743411863702,1.11461,1794.5,1794.4,1.11463]
[1743411863902,5.07154,1794.7,1794.5,1.11456]
[1743411864210,5.07154,1794.7,1794.3,8.09771]
[1743411864211,3.2078,1794.9,1794.3,5.3109]
[1743411864510,5.08546,1794.8,1794.6,1.1145]
[1743411864807,1.11448,1794.7,1794.5,1.11456]
[1743411865010,1.11454,1794.6,1794.5,1.1146]
[1743411865207,1.1146,1794.5,1794.4,3.25332]
[1743411865410,6.75709,1794.8,1794.5,1.11459]
[1743411865705,1.1146,1794.5,1794.4,3.25333]
[1743411866012,1.11472,1794.3,1794.2,0.43094841]
[1743411866205,0.6966,1794.4,1794.2,1.54573841]
[1743411866406,5.08965,1794.5,1794.3,1.11472]
[1743411866606,1.11466,1794.4,1794.3,1.11472]
[1743411866811,1.11472,1794.3,1794.2,1.89774841]
[1743411867011,1.11472,1794.3,1794.2,0.43094841]
[1743411867212,1.11472,1794.3,1794.2,0.00834841]
[1743411868504,3.982,1794.5,1794.3,1.11469]
[1743411868721,5.09663,1794.5,1794.2,5.75508841]
[1743411869008,1.11471,1794.4,1794.2,4.08287841]
[1743411869312,3.982,1794.5,1794.4,1.11466]
[1743411869812,3.982,1794.5,1794.4,2.61116]
[1743411870405,1.1146,1794.5,1794.4,2.61114]
[1743411870612,1.11459,1794.6,1794.5,1.11459]
[1743411870819,5.79313,1794.7,1794.6,1.11454]
[1743411871209,1.11433,1795.0,1794.7,2.7862]
[1743411871506,1.11433,1795.0,1794.8,1.4965]
[1743411871507,3.978,1795.0,1794.8,1.4965]
[1743411871712,3.986,1795.0,1794.9,1.11435]
[1743411872016,0.00834841,1795.1,1795.0,1.11429]
[1743411872207,0.00834841,1795.1,1795.0,2.49949]
[1743411872603,1.12257841,1795.1,1795.0,1.3852]
[1743411872911,1.12257841,1795.1,1795.0,4.7403]
[1743411873218,2.58217841,1795.1,1795.0,3.3551]
[1743411873916,3.30997841,1795.1,1795.0,3.3551]
[1743411874915,3.30997841,1795.1,1795.0,1.27855159]
[1743411876417,7.29297841,1795.1,1795.0,0.23815403]
[1743411876614,1.11429,1795.0,1794.9,0.4208]
[1743411876809,2.52289,1795.0,1794.9,0.4208]
[1743411877510,1.11446,1794.8,1794.6,5.76939]
[1743411877717,1.11446,1794.8,1794.7,2.52938]
[1743411877916,5.10546,1794.8,1794.7,2.52938]
[1743411878214,5.10546,1794.8,1794.7,1.4149]
[1743411878416,1.11448,1794.7,1794.6,3.2078]
[1743411878609,1.11448,1794.7,1794.6,4.6227]
[1743411878810,1.11448,1794.7,1794.6,5.73724]
[1743411879209,1.11448,1794.7,1794.6,4.6227]
[1743411880318,1.11448,1794.7,1794.6,2.52944]
[1743411880521,1.11448,1794.7,1794.6,1.4149]
[1743411880814,5.10546,1794.8,1794.7,1.11448]
[1743411881614,1.11448,1794.7,1794.6,2.52939]
[1743411883116,1.11448,1794.7,1794.6,1.4149]
[1743411883318,1.11448,1794.7,1794.6,2.52944]
[1743411883723,5.10547,1794.8,1794.7,1.11448]
[1743411883923,5.10547,1794.8,1794.7,2.54828]
[1743411884321,5.10547,1794.8,1794.7,1.4338]
[1743411886426,5.10547,1794.8,1794.7,2.54828]
[1743411886818,3.991,1794.8,1794.7,2.54828]
[1743411887133,3.52173841,1795.1,1794.7,2.54828]
[1743411887134,1.12262841,1795.1,1795.0,1.11429]
[1743411887425,0.00834841,1795.1,1795.0,1.11429]
[1743411887722,1.12257841,1795.1,1795.0,1.11429]
[1743411887924,0.00834841,1795.1,1795.0,5.05659]
[1743411888321,7.1788,1795.6,1795.2,1.11417]
[1743411888629,4.32177,1795.6,1795.5,1.11398]
[1743411888927,3.2078,1795.6,1795.4,1.114]
[1743411889222,1.11383,1795.8,1795.5,1.4818]
[1743411889421,5.09417841,1795.8,1795.7,1.11386]
[1743411889823,5.09417841,1795.8,1795.7,1.3834]
[1743411890028,5.09413841,1795.8,1795.7,2.49726]
[1743411890526,5.09413841,1795.8,1795.7,1.3834]
[1743411890721,1.11386,1795.7,1795.6,3.2078]
[1743411890925,1.11392,1795.6,1795.5,0.00834841]
[1743411891329,4.71804841,1795.8,1795.5,1.12229841]
[1743411891531,1.1139,1795.7,1795.5,2.50569841]
[1743411891735,1.11392,1795.6,1795.5,1.39174841]
[1743411891933,1.11392,1795.6,1795.5,0.00834841]
[1743411892128,1.11392,1795.6,1795.5,1.12232841]
[1743411892432,1.11392,1795.6,1795.5,1.39174841]
[1743411892635,1.11392,1795.6,1795.5,0.00834841]
[1743411892830,3.61392,1795.6,1795.5,0.00834841]
[1743411893130,2.53592,1795.6,1795.5,0.00834841]
[1743411893729,2.53592,1795.6,1795.5,0.00158177]
[1743411895434,6.49792,1795.6,1795.5,0.00158177]
[1743411895730,8.99792,1795.6,1795.5,0.00158177]
[1743411895933,1.11417,1795.2,1795.1,3.2078]
[1743411896133,5.07517,1795.2,1795.1,3.2078]
[1743411897224,6.47447,1795.2,1795.1,3.2078]
[1743411898230,5.07517,1795.2,1795.1,3.2078]
[1743411898433,5.07517,1795.2,1795.1,3.9082]
[1743411899734,3.961,1795.2,1795.1,5.02243]
[1743411899933,3.95,1795.4,1795.1,3.9082]
[1743411900135,1.1141,1795.3,1795.2,1.4571]
[1743411900331,2.6142,1795.3,1795.2,1.4571]
[1743411900531,2.6142,1795.3,1795.2,2.57127]
[1743411900735,2.6142,1795.3,1795.2,1.4571]
[1743411901235,1.11417,1795.2,1795.1,3.2078]
[1743411901430,2.61427,1795.2,1795.1,4.6649]
[1743411901630,1.11423,1795.1,1795.0,0.00834841]
[1743411901829,7.28373,1795.1,1795.0,0.00834841]
[1743411904235,7.28373,1795.1,1795.0,0.00158163]
[1743411906338,65.3518,1795.5,1795.0,1.11587163]
[1743411906539,5.57734841,1795.8,1795.7,1.11386]
[1743411906540,1.12218841,1795.8,1795.7,1.11386]
[1743411906738,0.44419826,1796.1,1795.8,1.11375]
[1743411907040,29.23405476,1796.5,1796.0,3.2078]
[1743411907041,26.02625476,1796.5,1796.0,3.2078]
[1743411907240,80.77642382,1796.8,1796.7,1.11324]
[1743411907435,20.57386081,1796.8,1796.7,4.32104]
[1743411907636,3.2977,1798.3,1797.8,3.2078]
[1743411907840,3.2977,1798.3,1797.7,1.11257]
[1743411907841,2.77938,1799.1,1798.5,3.2078]
[1743411908037,3.87401,1799.0,1798.6,4.001]
[1743411908230,2.77822,1799.9,1798.9,3.2078]
[1743411908231,9.24,1799.9,1798.9,3.2078]
[1743411908441,9.24,1799.9,1799.7,3.2078]
[1743411908442,23.3608,1799.9,1799.7,3.2078]
[1743411908644,1.5098,1800.1,1799.7,3.2078]
[1743411908842,3.2078,1800.9,1800.0,3.2078]
[1743411909033,4.072,1800.8,1800.5,3.2078]
[1743411909233,5.5818,1800.8,1799.8,0.68634065]
[1743411909438,12.24528,1800.3,1799.9,4.31903]
[1743411909636,1.5098,1800.2,1799.9,4.6599947]
[1743411909939,8.41e-06,1800.6,1800.5,1.11089]
[1743411910147,8.41e-06,1800.6,1800.5,4.31869]
[1743411910540,8.41e-06,1800.6,1800.5,1.11089]
[1743411910740,12.24528,1800.2,1800.0,3.81171523]
[1743411910940,26.25295815,1800.1,1799.1,9.736]
[1743411911143,26.25295815,1800.1,1798.9,4.679]
[1743411911144,2.38816934,1800.0,1799.5,3.2078]
[1743411911447,14.34219337,1800.3,1799.5,14.3523]
[1743411911638,11.13439337,1800.3,1800.2,1.11101]
[1743411911949,11.13439337,1800.2,1800.1,1.11113]
[1743411912239,11.13439337,1800.0,1799.2,3.12513307]
[1743411912443,12.58379337,1800.1,1800.0,0.84841005]
[1743411912636,15.60105159,1800.1,1800.0,0.84841005]
[1743411912836,19.95159337,1800.1,1800.0,0.12821005]
[1743411913043,26.73544496,1800.1,1800.0,1.11954841]
[1743411913239,36.49612496,1800.1,1800.0,1.11954841]
[1743411913540,36.49612496,1800.1,1800.0,0.00834841]
[1743411913742,32.33612496,1800.1,1800.0,0.00834841]
[1743411913941,32.33612496,1800.1,1799.1,2.77936]
[1743411913942,36.49412496,1800.1,1799.1,2.77936]
[1743411914145,3.2078,1799.5,1799.4,1.11157]
[1743411914841,14.34219337,1799.5,1799.4,1.11157]
[1743411915046,32.40022496,1799.5,1799.4,1.11157]
[1743411915243,32.40022496,1799.5,1799.3,1.11993841]
[1743411915447,23.93979337,1799.4,1799.3,0.00834841]
[1743411915640,26.56457337,1799.4,1799.3,0.00834841]
[1743411915840,89.41742496,1799.4,1798.6,2.78002]
[1743411916047,3.2078,1798.8,1798.7,1.112]
[1743411916346,17.12648,1798.8,1798.7,1.112]
[1743411916545,35.04472496,1798.8,1798.1,0.0282]
[1743411916752,1.90702,1798.2,1798.1,1.14057]
[1743411916947,0.68138,1798.2,1798.1,1.14057]
[1743411917151,7.3668,1798.3,1798.2,1.11231]
[1743411917449,14.159,1798.3,1798.2,1.11231]
[1743411917647,7.37514841,1798.3,1798.2,1.11231]
[1743411917843,5.95543841,1798.3,1798.2,1.11231]
[1743411918044,8.41e-06,1798.3,1798.2,1.11231]
[1743411918441,3.20780841,1798.3,1798.2,1.11231]
[1743411918841,3.47425,1798.7,1798.2,2.5]
[1743411919041,3.2078,1799.1,1799.0,1.11181]
[1743411919248,9.76068,1799.0,1798.3,9.736]
[1743411919441,3.2078,1798.7,1798.3,0.0281]
[1743411919650,4.2,1798.6,1798.3,0.0281]